[Event "Titled Tuesday Blitz July 20 2021"]
[White "Chiu, Isaac"]
[Black "Sarkar, Justin"]
[WhiteFideId "30900654"]
[BlackFideId "2010011"]
[WhiteElo "2117"]
[BlackElo "2072"]
[Result "0-1"]
[Round "01"]
[TimeControl "180+1"]
[Date "2021.07.21"]
[WhiteClock "0:00:23"]
[BlackClock "0:00:08"]

1. e4 {[%clk 0:02:54]}  e5 {[%clk 0:02:55]} 2. Nc3 {[%clk 0:02:53]}  Bb4 {[%clk 0:02:54]} 3. Bc4 {[%clk 0:02:51]}  Bxc3 {[%clk 0:02:51]} 4. bxc3 {[%clk 0:02:50]}  d6 {[%clk 0:02:49]} 5. Nf3 {[%clk 0:02:48]}  Nf6 {[%clk 0:02:43]} 6. d3 {[%clk 0:02:47]}  O-O {[%clk 0:02:38]} 7. O-O {[%clk 0:02:46]}  h6 {[%clk 0:02:30]} 8. h3 {[%clk 0:02:37]}  c6 {[%clk 0:02:13]} 9. Re1 {[%clk 0:02:36]}  Nbd7 {[%clk 0:02:05]} 10. a4 {[%clk 0:02:34]}  d5 {[%clk 0:01:57]} 11. exd5 {[%clk 0:02:32]}  cxd5 {[%clk 0:01:58]} 12. Ba2 {[%clk 0:02:33]}  Re8 {[%clk 0:01:54]} 13. Ba3 {[%clk 0:02:27]}  Qc7 {[%clk 0:01:51]} 14. Qd2 {[%clk 0:02:23]}  b6 {[%clk 0:01:35]} 15. Rab1 {[%clk 0:02:09]}  Bb7 {[%clk 0:01:28]} 16. Nh4 {[%clk 0:02:06]}  Rac8 {[%clk 0:01:14]} 17. Rb3 {[%clk 0:02:06]}  d4 {[%clk 0:00:59]} 18. c4 {[%clk 0:01:58]}  Nc5 {[%clk 0:00:57]} 19. Bxc5 {[%clk 0:01:55]}  bxc5 {[%clk 0:00:54]} 20. a5 {[%clk 0:01:50]}  Bc6 {[%clk 0:00:52]} 21. c3 {[%clk 0:01:44]}  Rcd8 {[%clk 0:00:48]} 22. cxd4 {[%clk 0:01:44]}  exd4 {[%clk 0:00:40]} 23. Rbb1 {[%clk 0:01:40]}  Kh7 {[%clk 0:00:37]} 24. Nf5 {[%clk 0:01:39]}  Rxe1+ {[%clk 0:00:30]} 25. Rxe1 {[%clk 0:01:38]}  Re8 {[%clk 0:00:30]} 26. Rxe8 {[%clk 0:01:34]}  Bxe8 {[%clk 0:00:30]} 27. Bb3 {[%clk 0:01:32]}  Bd7 {[%clk 0:00:29]} 28. Ng3 {[%clk 0:01:33]}  Be6 {[%clk 0:00:27]} 29. Ba4 {[%clk 0:01:32]}  g6 {[%clk 0:00:21]} 30. Bb5 {[%clk 0:01:25]}  Kg7 {[%clk 0:00:21]} 31. Qe1 {[%clk 0:01:16]}  Bc8 {[%clk 0:00:19]} 32. Ne2 {[%clk 0:01:08]}  Bb7 {[%clk 0:00:17]} 33. Ng3 {[%clk 0:01:04]}  Qd6 {[%clk 0:00:16]} 34. Ba4 {[%clk 0:01:00]}  h5 {[%clk 0:00:16]} 35. Bd1 {[%clk 0:00:55]}  h4 {[%clk 0:00:16]} 36. Nf1 {[%clk 0:00:55]}  Qc6 {[%clk 0:00:16]} 37. f3 {[%clk 0:00:53]}  Qc7 {[%clk 0:00:13]} 38. Nh2 {[%clk 0:00:48]}  Nh5 {[%clk 0:00:12]} 39. Ba4 {[%clk 0:00:43]}  Ng3 {[%clk 0:00:10]} 40. Nf1 {[%clk 0:00:43]}  Qf4 {[%clk 0:00:08]} 41. Nxg3 {[%clk 0:00:40]}  hxg3 {[%clk 0:00:08]} 42. Bd1 {[%clk 0:00:32]}  Kf6 {[%clk 0:00:07]} 43. Kf1 {[%clk 0:00:29]}  Qe5 {[%clk 0:00:05]} 44. Qd2 {[%clk 0:00:28]}  Qe3 {[%clk 0:00:05]} 45. Qxe3 {[%clk 0:00:26]}  dxe3 {[%clk 0:00:05]} 46. Ke2 {[%clk 0:00:27]}  Ke5 {[%clk 0:00:05]} 47. Kxe3 {[%clk 0:00:27]}  g5 {[%clk 0:00:06]} 48. Ba4 {[%clk 0:00:24]}  f5 {[%clk 0:00:05]} 49. Bd1 {[%clk 0:00:15]}  f4+ {[%clk 0:00:06]} 50. Kd2 {[%clk 0:00:16]}  Kd4 {[%clk 0:00:06]} 51. Be2 {[%clk 0:00:17]}  Bc6 {[%clk 0:00:06]} 52. Bd1 {[%clk 0:00:17]}  Bb7 {[%clk 0:00:06]} 53. Be2 {[%clk 0:00:18]}  Bc6 {[%clk 0:00:06]} 54. Bd1 {[%clk 0:00:18]}  Bd7 {[%clk 0:00:06]} 55. Be2 {[%clk 0:00:18]}  Bxh3 {[%clk 0:00:06]} 56. Bf1 {[%clk 0:00:18]}  Bf5 {[%clk 0:00:06]} 57. Be2 {[%clk 0:00:18]}  Be6 {[%clk 0:00:06]} 58. Bf1 {[%clk 0:00:19]}  g4 {[%clk 0:00:06]} 59. Be2 {[%clk 0:00:17]}  gxf3 {[%clk 0:00:06]} 60. Bxf3 {[%clk 0:00:18]}  Bf5 {[%clk 0:00:07]} 61. Be2 {[%clk 0:00:18]}  Bg6 {[%clk 0:00:07]} 62. Bf3 {[%clk 0:00:19]}  Bxd3 {[%clk 0:00:07]} 63. Bd5 {[%clk 0:00:19]}  Bxc4 {[%clk 0:00:07]} 64. Bf3 {[%clk 0:00:20]}  Bd5 {[%clk 0:00:07]} 65. Ke2 {[%clk 0:00:18]}  Bxf3+ {[%clk 0:00:07]} 66. Kxf3 {[%clk 0:00:19]}  c4 {[%clk 0:00:07]} 67. Kxf4 {[%clk 0:00:19]}  c3 {[%clk 0:00:08]} 68. Kxg3 {[%clk 0:00:20]}  c2 {[%clk 0:00:08]} 69. Kg4 {[%clk 0:00:21]}  c1=Q {[%clk 0:00:08]} 70. g3 {[%clk 0:00:22]}  Qa3 {[%clk 0:00:08]} 71. Kh4 {[%clk 0:00:23]}  Qxa5 {[%clk 0:00:08]} 72. Kh3 {[%clk 0:00:23]}  Ke3 {[%clk 0:00:09]} 73. Kh2 {[%clk 0:00:23]}  Kf3 {[%clk 0:00:09]} 74. Kh1 {[%clk 0:00:22]}  Qd2 {[%clk 0:00:08]} 75. Kg1 {[%clk 0:00:23]}  Qg2# {[%clk 0:00:08]} 0-1


[Site "https://www.chess.com"]

[Event "Titled Tuesday Blitz July 20 2021"]
[White "Dixit, Arun"]
[Black "ValeriyGrinev"]
[WhiteFideId "30937671"]
[WhiteElo "2352"]
[BlackElo "2635"]
[Result "1-0"]
[Round "01"]
[TimeControl "180+1"]
[Date "2021.07.21"]
[WhiteClock "0:00:23"]
[BlackClock "0:00:38"]

1. d4 {[%clk 0:02:56]}  d5 {[%clk 0:02:59]} 2. Nf3 {[%clk 0:02:41]}  Nf6 {[%clk 0:02:59]} 3. Ng5 {[%clk 0:02:30]}  h6 {[%clk 0:02:50]} 4. Nf3 {[%clk 0:02:30]}  g5 {[%clk 0:02:47]} 5. c4 {[%clk 0:02:31]}  c6 {[%clk 0:02:46]} 6. Ne5 {[%clk 0:02:31]}  Nbd7 {[%clk 0:02:46]} 7. Nc3 {[%clk 0:02:31]}  Bg7 {[%clk 0:02:46]} 8. h3 {[%clk 0:02:30]}  dxc4 {[%clk 0:02:39]} 9. Nxc4 {[%clk 0:02:28]}  Nb6 {[%clk 0:02:39]} 10. Ne5 {[%clk 0:02:28]}  Nfd5 {[%clk 0:02:37]} 11. Nf3 {[%clk 0:02:25]}  O-O {[%clk 0:02:33]} 12. e4 {[%clk 0:02:24]}  Nxc3 {[%clk 0:02:34]} 13. bxc3 {[%clk 0:02:24]}  c5 {[%clk 0:02:34]} 14. Be3 {[%clk 0:02:24]}  Bd7 {[%clk 0:02:30]} 15. Be2 {[%clk 0:02:21]}  Na4 {[%clk 0:02:29]} 16. Qd2 {[%clk 0:02:07]}  Qa5 {[%clk 0:02:28]} 17. Rc1 {[%clk 0:02:04]}  Rfd8 {[%clk 0:02:28]} 18. O-O {[%clk 0:01:56]}  Rac8 {[%clk 0:02:25]} 19. Bc4 {[%clk 0:01:48]}  b5 {[%clk 0:02:14]} 20. Bb3 {[%clk 0:01:43]}  c4 {[%clk 0:01:58]} 21. Bxa4 {[%clk 0:01:42]}  Qxa4 {[%clk 0:01:58]} 22. Nh2 {[%clk 0:01:31]}  Bc6 {[%clk 0:01:58]} 23. d5 {[%clk 0:01:18]}  e6 {[%clk 0:01:58]} 24. Bd4 {[%clk 0:01:18]}  exd5 {[%clk 0:01:55]} 25. Bxg7 {[%clk 0:01:11]}  Kxg7 {[%clk 0:01:56]} 26. Qd4+ {[%clk 0:01:10]}  f6 {[%clk 0:01:40]} 27. e5 {[%clk 0:01:11]}  Qa3 {[%clk 0:01:31]} 28. exf6+ {[%clk 0:01:08]}  Kg6 {[%clk 0:01:31]} 29. Ng4 {[%clk 0:01:07]}  Qd6 {[%clk 0:01:30]} 30. Ne5+ {[%clk 0:01:03]}  Kh7 {[%clk 0:01:29]} 31. Nf7 {[%clk 0:00:59]}  Qf4 {[%clk 0:01:22]} 32. Qxf4 {[%clk 0:00:43]}  gxf4 {[%clk 0:01:23]} 33. Nxd8 {[%clk 0:00:44]}  Rxd8 {[%clk 0:01:24]} 34. Rcd1 {[%clk 0:00:43]}  Kg6 {[%clk 0:01:23]} 35. Rd4 {[%clk 0:00:41]}  Kf5 {[%clk 0:01:20]} 36. Re1 {[%clk 0:00:41]}  a5 {[%clk 0:01:15]} 37. a3 {[%clk 0:00:38]}  Rf8 {[%clk 0:01:10]} 38. g4+ {[%clk 0:00:36]}  fxg3 {[%clk 0:01:05]} 39. fxg3 {[%clk 0:00:35]}  Rxf6 {[%clk 0:01:03]} 40. Rf1+ {[%clk 0:00:30]}  Kg6 {[%clk 0:01:04]} 41. Rxf6+ {[%clk 0:00:31]}  Kxf6 {[%clk 0:01:04]} 42. Kf2 {[%clk 0:00:32]}  Ke5 {[%clk 0:01:05]} 43. Ke3 {[%clk 0:00:32]}  Bd7 {[%clk 0:01:05]} 44. Rh4 {[%clk 0:00:32]}  Kd6 {[%clk 0:01:02]} 45. Kd4 {[%clk 0:00:31]}  Be6 {[%clk 0:00:56]} 46. Rxh6 {[%clk 0:00:31]}  Ke7 {[%clk 0:00:50]} 47. Kc5 {[%clk 0:00:29]}  b4 {[%clk 0:00:49]} 48. axb4 {[%clk 0:00:30]}  a4 {[%clk 0:00:49]} 49. Rh7+ {[%clk 0:00:30]}  Bf7 {[%clk 0:00:49]} 50. Rh8 {[%clk 0:00:30]}  Be8 {[%clk 0:00:49]} 51. Rh7+ {[%clk 0:00:24]}  Bf7 {[%clk 0:00:49]} 52. b5 {[%clk 0:00:20]}  a3 {[%clk 0:00:49]} 53. Rh6 {[%clk 0:00:20]}  Be6 {[%clk 0:00:48]} 54. Rh7+ {[%clk 0:00:20]}  Bf7 {[%clk 0:00:48]} 55. Rh6 {[%clk 0:00:20]}  Be6 {[%clk 0:00:46]} 56. Rh8 {[%clk 0:00:20]}  a2 {[%clk 0:00:38]} 57. Ra8 {[%clk 0:00:21]}  Bxh3 {[%clk 0:00:39]} 58. Rxa2 {[%clk 0:00:21]}  Kd7 {[%clk 0:00:39]} 59. Ra7+ {[%clk 0:00:21]}  Kc8 {[%clk 0:00:40]} 60. Kc6 {[%clk 0:00:22]}  Kb8 {[%clk 0:00:38]} 61. Rh7 {[%clk 0:00:22]}  Bg2 {[%clk 0:00:38]} 62. Rh8+ {[%clk 0:00:22]}  Ka7 {[%clk 0:00:37]} 63. b6+ {[%clk 0:00:22]}  Ka6 {[%clk 0:00:38]} 64. Ra8# {[%clk 0:00:23]} 1-0


[Site "https://www.chess.com"]

[Event "Titled Tuesday Blitz July 20 2021"]
[White "Djokic, Mihailo"]
[Black "Rustemov, Alexander"]
[WhiteFideId "976440"]
[BlackFideId "4119002"]
[WhiteElo "2018"]
[BlackElo "2845"]
[Result "0-1"]
[Round "01"]
[TimeControl "180+1"]
[Date "2021.07.20"]
[WhiteClock "0:00:01"]
[BlackClock "0:01:05"]

1. e4 {[%clk 0:03:00]}  e6 {[%clk 0:02:59]} 2. d4 {[%clk 0:03:00]}  d5 {[%clk 0:03:00]} 3. Nc3 {[%clk 0:02:58]}  dxe4 {[%clk 0:02:58]} 4. Nxe4 {[%clk 0:02:59]}  Bd7 {[%clk 0:02:59]} 5. Nf3 {[%clk 0:02:58]}  Bc6 {[%clk 0:02:59]} 6. Bd3 {[%clk 0:02:59]}  Nd7 {[%clk 0:02:59]} 7. O-O {[%clk 0:02:59]}  Ngf6 {[%clk 0:03:00]} 8. Ng3 {[%clk 0:02:59]}  Be7 {[%clk 0:03:00]} 9. Re1 {[%clk 0:02:58]}  O-O {[%clk 0:03:00]} 10. c4 {[%clk 0:02:58]}  Bb4 {[%clk 0:02:59]} 11. Rf1 {[%clk 0:02:50]}  Be7 {[%clk 0:02:57]} 12. Re1 {[%clk 0:02:50]}  Bb4 {[%clk 0:02:54]} 13. Rf1 {[%clk 0:02:50]}  b6 {[%clk 0:02:53]} 14. a3 {[%clk 0:02:48]}  Be7 {[%clk 0:02:52]} 15. Re1 {[%clk 0:02:48]}  Bb7 {[%clk 0:02:50]} 16. Bf4 {[%clk 0:02:30]}  c5 {[%clk 0:02:50]} 17. d5 {[%clk 0:02:30]}  exd5 {[%clk 0:02:49]} 18. Nf5 {[%clk 0:02:30]}  Re8 {[%clk 0:02:49]} 19. Rxe7 {[%clk 0:01:54]}  Rxe7 {[%clk 0:02:48]} 20. Bc7 {[%clk 0:01:48]}  Qxc7 {[%clk 0:02:42]} 21. Nxe7+ {[%clk 0:01:48]}  Kf8 {[%clk 0:02:40]} 22. Nxd5 {[%clk 0:01:47]}  Nxd5 {[%clk 0:02:37]} 23. cxd5 {[%clk 0:01:48]}  Nf6 {[%clk 0:02:36]} 24. Bc4 {[%clk 0:01:33]}  Rd8 {[%clk 0:02:35]} 25. Qa4 {[%clk 0:01:23]}  Bxd5 {[%clk 0:02:34]} 26. Bxd5 {[%clk 0:01:24]}  Rxd5 {[%clk 0:02:33]} 27. Re1 {[%clk 0:01:23]}  g6 {[%clk 0:02:27]} 28. h3 {[%clk 0:01:13]}  Qd7 {[%clk 0:02:26]} 29. Qh4 {[%clk 0:01:08]}  Kg7 {[%clk 0:02:23]} 30. Ne5 {[%clk 0:00:51]}  Qe6 {[%clk 0:02:19]} 31. f4 {[%clk 0:00:37]}  Qd6 {[%clk 0:02:10]} 32. Nc4 {[%clk 0:00:28]}  Qd8 {[%clk 0:02:06]} 33. Ne3 {[%clk 0:00:24]}  Rh5 {[%clk 0:01:59]} 34. Qg3 {[%clk 0:00:19]}  Qd4 {[%clk 0:01:54]} 35. b3 {[%clk 0:00:06]}  Ne4 {[%clk 0:01:47]} 36. Qf3 {[%clk 0:00:04]}  Nd2 {[%clk 0:01:45]} 37. Qe2 {[%clk 0:00:02]}  Nxb3 {[%clk 0:01:41]} 38. Kh1 {[%clk 0:00:02]}  Qe4 {[%clk 0:01:37]} 39. Qf2 {[%clk 0:00:01]}  Nd4 {[%clk 0:01:32]} 40. Ng4 {[%clk 0:00:01]}  Qc2 {[%clk 0:01:23]} 41. Qe3 {[%clk 0:00:01]}  Rf5 {[%clk 0:01:18]} 42. Qe8 {[%clk 0:00:01]}  Qd2 {[%clk 0:01:15]} 43. Rf1 {[%clk 0:00:01]}  h5 {[%clk 0:01:12]} 44. Nf2 {[%clk 0:00:01]}  Qxf4 {[%clk 0:01:09]} 45. Qa8 {[%clk 0:00:01]}  Ne2 {[%clk 0:01:05]} 0-1


[Site "https://www.chess.com"]

[Event "Titled Tuesday Blitz July 20 2021"]
[White "Dolzhykova, Kateryna"]
[Black "Wagner, Dennis"]
[WhiteFideId "14113414"]
[BlackFideId "24650684"]
[WhiteElo "2403"]
[BlackElo "2737"]
[Result "0-1"]
[Round "01"]
[TimeControl "180+1"]
[Date "2021.07.21"]
[WhiteClock "0:00:03"]
[BlackClock "0:00:29"]

1. e4 {[%clk 0:02:51]}  c5 {[%clk 0:02:54]} 2. Nf3 {[%clk 0:02:50]}  d6 {[%clk 0:02:54]} 3. g3 {[%clk 0:02:49]}  g6 {[%clk 0:02:53]} 4. Bg2 {[%clk 0:02:49]}  Bg7 {[%clk 0:02:53]} 5. O-O {[%clk 0:02:49]}  Nc6 {[%clk 0:02:52]} 6. d3 {[%clk 0:02:46]}  e5 {[%clk 0:02:49]} 7. Nc3 {[%clk 0:02:40]}  Nge7 {[%clk 0:02:49]} 8. h4 {[%clk 0:02:36]}  h6 {[%clk 0:02:46]} 9. h5 {[%clk 0:02:30]}  g5 {[%clk 0:02:33]} 10. Nh2 {[%clk 0:02:29]}  Be6 {[%clk 0:02:28]} 11. f4 {[%clk 0:02:28]}  gxf4 {[%clk 0:02:27]} 12. gxf4 {[%clk 0:02:29]}  exf4 {[%clk 0:02:26]} 13. Bxf4 {[%clk 0:02:30]}  Rg8 {[%clk 0:02:22]} 14. Kh1 {[%clk 0:02:25]}  Qd7 {[%clk 0:02:21]} 15. Rb1 {[%clk 0:01:58]}  O-O-O {[%clk 0:02:20]} 16. Nd5 {[%clk 0:01:58]}  Ne5 {[%clk 0:01:42]} 17. c3 {[%clk 0:01:42]}  Nxd5 {[%clk 0:01:40]} 18. exd5 {[%clk 0:01:43]}  Bh3 {[%clk 0:01:41]} 19. Rg1 {[%clk 0:01:16]}  Ng4 {[%clk 0:01:16]} 20. Nxg4 {[%clk 0:01:15]}  Bxg4 {[%clk 0:01:17]} 21. Qe1 {[%clk 0:01:10]}  Qf5 {[%clk 0:00:59]} 22. Qh4 {[%clk 0:00:47]}  Qxf4 {[%clk 0:00:47]} 23. Rbf1 {[%clk 0:00:35]}  Qg5 {[%clk 0:00:46]} 24. Qxg5 {[%clk 0:00:35]}  hxg5 {[%clk 0:00:47]} 25. Rxf7 {[%clk 0:00:35]}  Bxh5 {[%clk 0:00:47]} 26. Bh3+ {[%clk 0:00:33]}  Kb8 {[%clk 0:00:44]} 27. Re7 {[%clk 0:00:33]}  Bf3+ {[%clk 0:00:41]} 28. Kh2 {[%clk 0:00:32]}  Be5+ {[%clk 0:00:41]} 29. Rxe5 {[%clk 0:00:32]}  dxe5 {[%clk 0:00:42]} 30. Be6 {[%clk 0:00:32]}  Rh8+ {[%clk 0:00:40]} 31. Kg3 {[%clk 0:00:33]}  Bxd5 {[%clk 0:00:41]} 32. Bf5 {[%clk 0:00:33]}  Rdf8 {[%clk 0:00:39]} 33. Kg4 {[%clk 0:00:33]}  Rh4+ {[%clk 0:00:36]} 34. Kxg5 {[%clk 0:00:34]}  Rf4 {[%clk 0:00:33]} 35. Bg6 {[%clk 0:00:32]}  Rg8 {[%clk 0:00:29]} 36. Re1 {[%clk 0:00:23]}  Bf7 {[%clk 0:00:29]} 37. Rxe5 {[%clk 0:00:23]}  Rf2 {[%clk 0:00:29]} 38. Rf5 {[%clk 0:00:04]}  Rxg6+ {[%clk 0:00:28]} 39. Kh5 {[%clk 0:00:03]}  Rh2# {[%clk 0:00:29]} 0-1


[Site "https://www.chess.com"]

[Event "Titled Tuesday Blitz July 20 2021"]
[White "Dzierzak, Radoslaw"]
[Black "Timmermans, Mark"]
[WhiteFideId "1161407"]
[BlackFideId "1026399"]
[WhiteElo "2019"]
[BlackElo "2460"]
[Result "0-1"]
[Round "01"]
[TimeControl "180+1"]
[Date "2021.07.21"]
[WhiteClock "0:00:14"]
[BlackClock "0:01:00"]

1. e4 {[%clk 0:02:59]}  e5 {[%clk 0:02:59]} 2. Nf3 {[%clk 0:03:00]}  Nc6 {[%clk 0:02:55]} 3. Bc4 {[%clk 0:02:59]}  Nf6 {[%clk 0:02:52]} 4. d3 {[%clk 0:02:58]}  Be7 {[%clk 0:02:53]} 5. O-O {[%clk 0:02:56]}  O-O {[%clk 0:02:53]} 6. Re1 {[%clk 0:02:55]}  d6 {[%clk 0:02:53]} 7. a4 {[%clk 0:02:43]}  Kh8 {[%clk 0:02:53]} 8. c3 {[%clk 0:02:19]}  Ng8 {[%clk 0:02:53]} 9. d4 {[%clk 0:02:16]}  f5 {[%clk 0:02:54]} 10. dxe5 {[%clk 0:02:04]}  fxe4 {[%clk 0:02:54]} 11. Rxe4 {[%clk 0:02:02]}  Rxf3 {[%clk 0:02:54]} 12. Qxf3 {[%clk 0:01:58]}  d5 {[%clk 0:02:51]} 13. Re1 {[%clk 0:00:53]}  dxc4 {[%clk 0:02:51]} 14. Nd2 {[%clk 0:00:53]}  Be6 {[%clk 0:02:50]} 15. Ne4 {[%clk 0:00:52]}  Nxe5 {[%clk 0:02:27]} 16. Qg3 {[%clk 0:00:52]}  Nd3 {[%clk 0:02:26]} 17. Ng5 {[%clk 0:00:49]}  Bd5 {[%clk 0:02:10]} 18. Re5 {[%clk 0:00:43]}  Nxe5 {[%clk 0:01:56]} 19. Qxe5 {[%clk 0:00:38]}  Bxg5 {[%clk 0:01:54]} 20. Bxg5 {[%clk 0:00:37]}  Qd6 {[%clk 0:01:54]} 21. Qe3 {[%clk 0:00:36]}  h6 {[%clk 0:01:53]} 22. Bf4 {[%clk 0:00:36]}  Qe6 {[%clk 0:01:52]} 23. Qg3 {[%clk 0:00:35]}  Re8 {[%clk 0:01:48]} 24. h3 {[%clk 0:00:34]}  Nf6 {[%clk 0:01:48]} 25. Kh2 {[%clk 0:00:34]}  Nh5 {[%clk 0:01:47]} 26. Qh4 {[%clk 0:00:32]}  Nxf4 {[%clk 0:01:46]} 27. Qxf4 {[%clk 0:00:33]}  Qe5 {[%clk 0:01:47]} 28. Qxe5 {[%clk 0:00:34]}  Rxe5 {[%clk 0:01:47]} 29. Rd1 {[%clk 0:00:34]}  c6 {[%clk 0:01:47]} 30. Rd2 {[%clk 0:00:33]}  Kg8 {[%clk 0:01:47]} 31. Kg3 {[%clk 0:00:33]}  g5 {[%clk 0:01:47]} 32. f4 {[%clk 0:00:33]}  Re3+ {[%clk 0:01:45]} 33. Kg4 {[%clk 0:00:33]}  Be6+ {[%clk 0:01:39]} 34. f5 {[%clk 0:00:33]}  Re4+ {[%clk 0:01:39]} 35. Kf3 {[%clk 0:00:33]}  Bxf5 {[%clk 0:01:38]} 36. g4 {[%clk 0:00:33]}  Rf4+ {[%clk 0:01:35]} 37. Kg3 {[%clk 0:00:33]}  Bd3 {[%clk 0:01:36]} 38. h4 {[%clk 0:00:32]}  Kf7 {[%clk 0:01:36]} 39. hxg5 {[%clk 0:00:32]}  hxg5 {[%clk 0:01:37]} 40. b4 {[%clk 0:00:31]}  Ke6 {[%clk 0:01:32]} 41. b5 {[%clk 0:00:31]}  cxb5 {[%clk 0:01:32]} 42. axb5 {[%clk 0:00:32]}  Re4 {[%clk 0:01:32]} 43. Ra2 {[%clk 0:00:31]}  Re3+ {[%clk 0:01:32]} 44. Kf2 {[%clk 0:00:31]}  Re5 {[%clk 0:01:33]} 45. Rxa7 {[%clk 0:00:25]}  Rxb5 {[%clk 0:01:32]} 46. Ke3 {[%clk 0:00:26]}  Re5+ {[%clk 0:01:29]} 47. Kf2 {[%clk 0:00:26]}  Re2+ {[%clk 0:01:29]} 48. Kf3 {[%clk 0:00:26]}  Rb2 {[%clk 0:01:29]} 49. Ra5 {[%clk 0:00:25]}  b5 {[%clk 0:01:29]} 50. Ra6+ {[%clk 0:00:20]}  Kd5 {[%clk 0:01:28]} 51. Ra7 {[%clk 0:00:19]}  b4 {[%clk 0:01:25]} 52. cxb4 {[%clk 0:00:19]}  c3 {[%clk 0:01:26]} 53. Ke3 {[%clk 0:00:16]}  Bb5 {[%clk 0:01:23]} 54. Rc7 {[%clk 0:00:16]}  Re2+ {[%clk 0:01:08]} 55. Kf3 {[%clk 0:00:14]}  c2 {[%clk 0:01:00]} 56. Rc5+ {[%clk 0:00:13]}  Kd4 {[%clk 0:01:00]} 57. Rxc2 {[%clk 0:00:14]}  Rxc2 {[%clk 0:01:00]} 0-1


[Site "https://www.chess.com"]

[Event "Titled Tuesday Blitz July 20 2021"]
[White "Eynullayev, Altay"]
[Black "Bakalchuk, Johnatan"]
[WhiteFideId "13413562"]
[BlackFideId "2810301"]
[WhiteElo "2079"]
[BlackElo "2507"]
[Result "0-1"]
[Round "01"]
[TimeControl "180+1"]
[Date "2021.07.21"]
[WhiteClock "0:00:01"]
[BlackClock "0:01:16"]

1. d4 {[%clk 0:03:00]}  Nf6 {[%clk 0:02:58]} 2. c4 {[%clk 0:03:00]}  g6 {[%clk 0:02:58]} 3. Nc3 {[%clk 0:03:00]}  Bg7 {[%clk 0:02:59]} 4. e4 {[%clk 0:03:00]}  O-O {[%clk 0:03:00]} 5. Be2 {[%clk 0:02:59]}  d6 {[%clk 0:03:00]} 6. Be3 {[%clk 0:02:57]}  Na6 {[%clk 0:03:00]} 7. h4 {[%clk 0:02:55]}  e5 {[%clk 0:02:58]} 8. d5 {[%clk 0:02:42]}  Nc5 {[%clk 0:02:58]} 9. f3 {[%clk 0:02:39]}  a5 {[%clk 0:02:54]} 10. g4 {[%clk 0:02:35]}  h5 {[%clk 0:02:52]} 11. g5 {[%clk 0:02:35]}  Ne8 {[%clk 0:02:51]} 12. Qd2 {[%clk 0:02:33]}  c6 {[%clk 0:02:46]} 13. O-O-O {[%clk 0:02:31]}  cxd5 {[%clk 0:02:46]} 14. cxd5 {[%clk 0:02:31]}  Nc7 {[%clk 0:02:45]} 15. Nh3 {[%clk 0:02:19]}  Bd7 {[%clk 0:02:39]} 16. Kb1 {[%clk 0:01:47]}  b5 {[%clk 0:02:39]} 17. Rc1 {[%clk 0:01:47]}  b4 {[%clk 0:02:36]} 18. Nd1 {[%clk 0:01:47]}  N7a6 {[%clk 0:02:26]} 19. Ndf2 {[%clk 0:01:37]}  a4 {[%clk 0:02:24]} 20. Nd3 {[%clk 0:01:30]}  Qb6 {[%clk 0:02:22]} 21. Nhf2 {[%clk 0:01:27]}  Rfc8 {[%clk 0:02:15]} 22. Nxc5 {[%clk 0:01:23]}  Nxc5 {[%clk 0:02:16]} 23. Nd3 {[%clk 0:01:20]}  b3 {[%clk 0:02:15]} 24. a3 {[%clk 0:01:17]}  Bf8 {[%clk 0:02:05]} 25. Bxc5 {[%clk 0:00:57]}  dxc5 {[%clk 0:02:04]} 26. Nxe5 {[%clk 0:00:57]}  Be8 {[%clk 0:02:04]} 27. Nc4 {[%clk 0:00:56]}  Qd8 {[%clk 0:02:02]} 28. e5 {[%clk 0:00:54]}  Bg7 {[%clk 0:02:02]} 29. f4 {[%clk 0:00:54]}  Bd7 {[%clk 0:02:02]} 30. Bd3 {[%clk 0:00:37]}  Rab8 {[%clk 0:01:58]} 31. Be4 {[%clk 0:00:35]}  Kh7 {[%clk 0:01:45]} 32. Rhf1 {[%clk 0:00:24]}  Bb5 {[%clk 0:01:36]} 33. d6 {[%clk 0:00:15]}  Qd7 {[%clk 0:01:32]} 34. f5 {[%clk 0:00:13]}  Bxc4 {[%clk 0:01:23]} 35. e6 {[%clk 0:00:10]}  Bxe6 {[%clk 0:01:23]} 36. fxe6 {[%clk 0:00:06]}  Qxe6 {[%clk 0:01:23]} 37. Rce1 {[%clk 0:00:03]}  Rd8 {[%clk 0:01:22]} 38. Bg2 {[%clk 0:00:01]}  Rxd6 {[%clk 0:01:16]} 0-1


[Site "https://www.chess.com"]

[Event "Titled Tuesday Blitz July 20 2021"]
[White "Gogolev, Artem"]
[Black "Pakleza, Zbigniew"]
[WhiteFideId "4116615"]
[BlackFideId "1119290"]
[WhiteElo "2407"]
[BlackElo "2760"]
[Result "0-1"]
[Round "01"]
[TimeControl "180+1"]
[Date "2021.07.21"]
[WhiteClock "0:00:11"]
[BlackClock "0:00:21"]

1. d4 {[%clk 0:02:58]}  d6 {[%clk 0:02:59]} 2. Nf3 {[%clk 0:02:49]}  Bg4 {[%clk 0:02:57]} 3. g3 {[%clk 0:02:34]}  Bxf3 {[%clk 0:02:57]} 4. exf3 {[%clk 0:02:34]}  e6 {[%clk 0:02:57]} 5. c4 {[%clk 0:02:33]}  c6 {[%clk 0:02:55]} 6. Nc3 {[%clk 0:02:33]}  d5 {[%clk 0:02:54]} 7. h4 {[%clk 0:02:31]}  h5 {[%clk 0:02:49]} 8. cxd5 {[%clk 0:02:15]}  cxd5 {[%clk 0:02:45]} 9. Bb5+ {[%clk 0:02:14]}  Nc6 {[%clk 0:02:33]} 10. O-O {[%clk 0:02:15]}  Qb6 {[%clk 0:02:20]} 11. f4 {[%clk 0:02:04]}  Ne7 {[%clk 0:02:18]} 12. Re1 {[%clk 0:02:03]}  g6 {[%clk 0:02:15]} 13. Qa4 {[%clk 0:01:55]}  Bg7 {[%clk 0:02:09]} 14. Be3 {[%clk 0:01:46]}  O-O {[%clk 0:02:05]} 15. Ne2 {[%clk 0:01:45]}  a6 {[%clk 0:01:59]} 16. Bxc6 {[%clk 0:01:45]}  Nxc6 {[%clk 0:02:00]} 17. b3 {[%clk 0:01:40]}  Rfc8 {[%clk 0:01:55]} 18. Rec1 {[%clk 0:01:38]}  Bf8 {[%clk 0:01:39]} 19. a3 {[%clk 0:01:30]}  Qb5 {[%clk 0:01:14]} 20. Qxb5 {[%clk 0:01:27]}  axb5 {[%clk 0:01:15]} 21. a4 {[%clk 0:01:25]}  b4 {[%clk 0:01:09]} 22. Kf1 {[%clk 0:01:10]}  Na5 {[%clk 0:01:08]} 23. Rab1 {[%clk 0:01:07]}  Bd6 {[%clk 0:01:06]} 24. Ke1 {[%clk 0:01:07]}  Kf8 {[%clk 0:01:06]} 25. Rxc8+ {[%clk 0:01:06]}  Rxc8 {[%clk 0:01:06]} 26. Rc1 {[%clk 0:01:05]}  Rb8 {[%clk 0:01:05]} 27. Rb1 {[%clk 0:01:03]}  Ke7 {[%clk 0:01:06]} 28. Kd2 {[%clk 0:00:59]}  Kd7 {[%clk 0:01:05]} 29. Nc1 {[%clk 0:00:58]}  Rc8 {[%clk 0:01:02]} 30. Rb2 {[%clk 0:00:56]}  f6 {[%clk 0:01:00]} 31. Rc2 {[%clk 0:00:54]}  Nc6 {[%clk 0:00:58]} 32. Nd3 {[%clk 0:00:52]}  b6 {[%clk 0:00:58]} 33. Ke2 {[%clk 0:00:49]}  Nxd4+ {[%clk 0:00:57]} 34. Bxd4 {[%clk 0:00:48]}  Rxc2+ {[%clk 0:00:58]} 35. Kd1 {[%clk 0:00:47]}  Rc8 {[%clk 0:00:41]} 36. Bxf6 {[%clk 0:00:46]}  b5 {[%clk 0:00:40]} 37. axb5 {[%clk 0:00:32]}  Rb8 {[%clk 0:00:41]} 38. Be5 {[%clk 0:00:30]}  Rxb5 {[%clk 0:00:41]} 39. Bxd6 {[%clk 0:00:29]}  Kxd6 {[%clk 0:00:42]} 40. Ne5 {[%clk 0:00:29]}  Rc5 {[%clk 0:00:42]} 41. Nxg6 {[%clk 0:00:28]}  Rc3 {[%clk 0:00:43]} 42. f5 {[%clk 0:00:26]}  exf5 {[%clk 0:00:41]} 43. Nf4 {[%clk 0:00:27]}  Rxb3 {[%clk 0:00:41]} 44. Nxh5 {[%clk 0:00:26]}  Rc3 {[%clk 0:00:41]} 45. Kd2 {[%clk 0:00:23]}  d4 {[%clk 0:00:37]} 46. Nf4 {[%clk 0:00:22]}  b3 {[%clk 0:00:36]} 47. Nd3 {[%clk 0:00:21]}  Kd5 {[%clk 0:00:28]} 48. h5 {[%clk 0:00:20]}  Ke4 {[%clk 0:00:25]} 49. f3+ {[%clk 0:00:18]}  Kxf3 {[%clk 0:00:26]} 50. h6 {[%clk 0:00:17]}  Rc2+ {[%clk 0:00:23]} 51. Kd1 {[%clk 0:00:15]}  Rc7 {[%clk 0:00:24]} 52. Ne5+ {[%clk 0:00:11]}  Kxg3 {[%clk 0:00:21]} 0-1


[Site "https://www.chess.com"]